bitfinex-derivatives/quotes_BTCF0:USTF0_20241227
["timestamp","ask_amount","ask_price","bid_price","bid_amount"]
[1735327111713,0.00060001,94461.0,94460.0,0.053008]
[1735327112011,0.36136001,94471.0,94458.0,0.0322]
[1735327112212,0.3608,94471.0,94470.0,0.053002]
[1735327113107,0.3608,94471.0,94457.0,0.3947]
[1735327113412,0.3608,94461.0,94454.0,0.053011]
[1735327113616,0.3608,94461.0,94455.0,0.05301]
[1735327114209,0.053009,94458.0,94450.0,0.19015849]
[1735327114516,0.3608,94453.0,94449.0,0.053014]
[1735327114812,0.3608,94453.0,94445.0,0.37129621]
[1735327115007,0.3608,94453.0,94451.0,0.053013]
[1735327115401,0.05301,94456.0,94451.0,0.053013]
[1735327116211,0.12604013,94460.0,94453.0,0.053012]
[1735327117118,0.48740014,94461.0,94453.0,0.053012]
[1735327117317,0.48684013,94461.0,94453.0,0.053012]
[1735327118523,0.15755017,94456.0,94453.0,0.053012]
[1735327119319,0.15755017,94456.0,94454.0,0.053011]
[1735327119910,0.15755017,94456.0,94455.0,1.5]
[1735327120713,0.05156559,94460.0,94459.0,0.053009]
[1735327120909,0.05156559,94460.0,94459.0,0.413809]
[1735327121313,0.22153416,94476.0,94464.0,0.053006]
[1735327121513,0.22153416,94476.0,94468.0,0.3608]
[1735327122117,0.22153416,94476.0,94475.0,0.053]
[1735327122525,0.6163097,94482.0,94481.0,0.052996]
[1735327122526,0.36302809,94482.0,94481.0,0.052996]
[1735327122715,0.36238809,94482.0,94481.0,0.052996]
[1735327123115,0.00158809,94482.0,94481.0,0.052996]
[1735327123625,0.007,94476.0,94475.0,0.001]
[1735327123825,0.4639,94476.0,94475.0,0.001]
[1735327124626,0.4321,94476.0,94475.0,0.001]
[1735327124827,0.007,94476.0,94475.0,0.001]
[1735327125016,0.00758809,94482.0,94481.0,0.053996]
[1735327125626,0.00758809,94482.0,94481.0,0.052996]
[1735327125627,0.00158809,94482.0,94481.0,0.052996]
[1735327126217,0.00758809,94482.0,94481.0,0.053996]
[1735327126613,0.00158809,94482.0,94481.0,0.052996]
[1735327126826,0.00758809,94482.0,94481.0,0.053996]
[1735327128727,0.00158809,94482.0,94481.0,0.052996]
[1735327128927,0.01058809,94482.0,94481.0,0.053996]
[1735327129527,0.12629864,94492.0,94491.0,0.05299]
[1735327129728,0.48773864,94495.0,94494.0,0.052989]
[1735327129930,0.48709864,94495.0,94494.0,0.052989]
[1735327130826,0.3608,94495.0,94494.0,0.052989]
[1735327131929,0.3618,94495.0,94494.0,0.053989]
[1735327132430,0.3618,94495.0,94494.0,0.054989]
[1735327133331,0.3618,94495.0,94494.0,0.002]
[1735327133921,0.3618,94495.0,94476.0,0.01057316]
[1735327134130,0.3608,94483.0,94475.0,0.19174608]
[1735327134335,0.0694,94482.0,94475.0,0.19174608]
[1735327134633,0.0694,94482.0,94475.0,0.00158759]
[1735327134634,0.052998,94476.0,94475.0,0.00158759]
[1735327135734,0.0704,94482.0,94475.0,0.00158759]
[1735327136034,0.001,94476.0,94475.0,0.00158759]
[1735327136334,0.002,94476.0,94475.0,0.00158759]
[1735327138527,0.001,94476.0,94475.0,0.00158759]
[1735327138725,0.002,94476.0,94475.0,0.00158759]
[1735327139325,0.002,94476.0,94468.0,0.053003]
[1735327139326,0.052999,94475.0,94468.0,0.053003]
[1735327139629,0.3608,94472.0,94468.0,0.053003]
[1735327139829,0.3608,94472.0,94470.0,0.053002]
[1735327141531,0.3628,94472.0,94470.0,0.053002]
[1735327142532,0.3638,94472.0,94470.0,0.053002]
[1735327156048,0.003,94472.0,94470.0,0.053002]
[1735327156241,0.003,94472.0,94471.0,0.0698]
[1735327157247,0.003,94472.0,94471.0,0.0344]
[1735327157442,0.001,94472.0,94471.0,0.0344]
[1735327157639,0.004,94472.0,94470.0,0.053002]
[1735327159045,0.053002,94470.0,94465.0,0.3608]
[1735327159249,0.0351,94469.0,94465.0,0.3608]
[1735327160137,0.0351,94469.0,94465.0,0.413804]
[1735327160138,0.15779421,94468.0,94465.0,0.413804]
[1735327161148,0.22535307,94469.0,94465.0,0.413804]
[1735327161354,0.001,94468.0,94465.0,0.413804]
[1735327161548,0.001,94468.0,94465.0,0.3608]
[1735327162047,0.002,94468.0,94465.0,0.3608]
[1735327162955,0.002,94468.0,94467.0,0.053003]
[1735327163254,0.002,94468.0,94465.0,0.3608]
[1735327163453,0.3608,94466.0,94465.0,0.19015849]
[1735327163658,0.3608,94466.0,94465.0,0.13495849]
[1735327164644,0.55105307,94466.0,94449.0,0.25305945]
[1735327164948,0.3608,94456.0,94449.0,0.25305945]
[1735327165149,0.053013,94451.0,94449.0,0.25305945]
[1735327166055,0.053013,94451.0,94446.0,0.00158794]
[1735327166056,0.15805484,94452.0,94446.0,0.00158794]
[1735327166263,0.413815,94447.0,94446.0,0.00158794]
[1735327166457,0.053021,94437.0,94434.0,0.30608145]
[1735327167255,0.053021,94437.0,94434.0,0.053022]
[1735327167558,0.053021,94437.0,94434.0,0.054022]
[1735327168757,0.36136001,94438.0,94436.0,0.053021]
[1735327168954,0.12627278,94443.0,94436.0,0.053021]
[1735327169949,0.053016,94444.0,94436.0,0.054021]
[1735327170761,0.053016,94444.0,94436.0,0.061021]
[1735327172553,0.36140001,94446.0,94436.0,0.008]
[1735327172761,0.3608,94446.0,94445.0,0.053016]
[1735327174247,0.3608,94446.0,94445.0,0.056016]
[1735327174452,0.3618,94446.0,94445.0,0.056016]
[1735327176353,0.001,94446.0,94445.0,0.056016]
[1735327180657,0.001,94446.0,94445.0,0.416816]
[1735327180856,0.00158859,94456.0,94455.0,0.05301]
[1735327182054,0.00258859,94456.0,94455.0,0.05301]
[1735327182254,0.00258859,94456.0,94455.0,0.06383606]
[1735327183358,0.00358859,94456.0,94455.0,0.06383606]
[1735327183967,0.00258859,94456.0,94455.0,0.06683606]
[1735327184865,0.00258859,94456.0,94455.0,0.01382606]
[1735327185064,0.00258859,94456.0,94455.0,0.003]
[1735327185263,0.03748859,94456.0,94455.0,0.003]
[1735327185861,0.03648859,94456.0,94455.0,0.003]
[1735327186664,0.03648859,94456.0,94450.0,0.01078052]
[1735327186867,0.05301,94455.0,94446.0,0.053015]
[1735327188372,0.05301,94455.0,94446.0,0.06543338]
[1735327190071,0.05301,94455.0,94447.0,0.053014]
[1735327191462,0.05301,94455.0,94447.0,0.055014]
[1735327192372,0.12597867,94448.0,94447.0,0.055014]
[1735327193766,0.15747334,94453.0,94447.0,0.055014]
[1735327195371,0.15747334,94450.0,94447.0,0.055014]
[1735327198066,0.413814,94448.0,94447.0,0.002]
[1735327198271,0.053018,94441.0,94435.0,0.01038133]
[1735327198474,0.3608,94438.0,94433.0,0.053022]
[1735327199270,0.3588,94438.0,94433.0,0.053022]
[1735327199879,0.51653434,94438.0,94433.0,0.061022]
[1735327200379,0.51653434,94438.0,94435.0,0.053021]
[1735327200770,0.053022,94434.0,94433.0,0.008]
[1735327200970,0.3608,94434.0,94417.0,0.01075936]
[1735327201272,0.3598,94419.0,94417.0,0.01075936]
[1735327201681,0.3598,94419.0,94412.0,0.31686069]
[1735327201974,0.3598,94419.0,94415.0,0.05462059]
[1735327202174,0.3598,94419.0,94418.0,0.25748855]
[1735327202388,0.3598,94419.0,94418.0,0.004]
[1735327202971,0.3528,94419.0,94418.0,0.004]
[1735327203472,0.3528,94419.0,94418.0,0.002]
[1735327203672,0.3538,94419.0,94418.0,0.011]
[1735327203973,0.001,94419.0,94418.0,0.011]
[1735327205885,0.36136001,94434.0,94431.0,0.053024]
[1735327206084,0.36136001,94434.0,94433.0,0.053023]
[1735327206466,0.36136001,94434.0,94433.0,1.553023]
[1735327206666,0.36136001,94434.0,94433.0,0.053023]
[1735327206876,0.3608,94434.0,94433.0,0.053023]
[1735327209182,0.3608,94434.0,94433.0,0.056023]
[1735327209785,0.3608,94434.0,94433.0,0.055023]
[1735327210775,0.3608,94434.0,94433.0,0.002]
[1735327210776,0.3618,94434.0,94433.0,0.002]
[1735327211182,0.4657,94434.0,94433.0,0.002]
[1735327212483,0.4657,94434.0,94433.0,0.001]
[1735327212690,0.518722,94434.0,94433.0,0.001]
[1735327215389,0.483622,94434.0,94433.0,0.001]
[1735327217285,0.3618,94434.0,94433.0,0.001]
[1735327217995,0.001,94434.0,94433.0,0.001]
[1735327218780,0.36144,94445.0,94434.0,0.053022]
[1735327218975,0.36144,94445.0,94435.0,0.10769915]
[1735327218976,0.3608,94445.0,94435.0,0.10769915]
[1735327219385,0.12597698,94451.0,94445.0,0.053015]
[1735327219585,0.12597698,94451.0,94435.0,0.10769915]
[1735327219787,0.12597698,94451.0,94450.0,0.053013]
[1735327220192,0.36136001,94460.0,94450.0,0.053013]
[1735327220193,0.48733699,94460.0,94450.0,0.053013]
[1735327220594,0.48733699,94460.0,94446.0,0.46849915]
[1735327220890,0.12597698,94460.0,94459.0,0.053008]
[1735327221393,0.12597698,94460.0,94459.0,0.413808]
[1735327221592,0.12597698,94471.0,94470.0,0.053002]
[1735327221778,0.12597698,94471.0,94470.0,0.413802]
[1735327222688,0.00158818,94480.0,94472.0,0.053001]
[1735327222896,0.009,94471.0,94470.0,0.414802]
[1735327223281,0.009,94471.0,94470.0,0.054002]
[1735327223485,0.009,94471.0,94470.0,0.001]
[1735327224983,0.00158818,94480.0,94473.0,0.053]
[1735327226585,0.01058818,94480.0,94473.0,0.054]
[1735327226780,0.01058818,94480.0,94475.0,0.052999]
[1735327227088,0.01058818,94480.0,94473.0,0.001]
[1735327227294,0.01058818,94480.0,94478.0,0.052997]
[1735327228085,0.00158818,94480.0,94478.0,0.052997]
[1735327228295,0.3608,94479.0,94473.0,0.001]
[1735327228597,0.052999,94476.0,94473.0,0.001]
[1735327228797,0.052999,94476.0,94452.0,0.0718]
[1735327228995,0.3608,94471.0,94452.0,0.0718]
[1735327229181,0.3608,94471.0,94467.0,0.053003]
[1735327229587,0.3608,94471.0,94460.0,0.053007]
[1735327229898,0.3608,94463.0,94460.0,0.053007]
[1735327230094,0.0346,94470.0,94460.0,0.053007]
[1735327230293,0.0346,94470.0,94452.0,0.08322562]
[1735327230495,0.0346,94470.0,94463.0,0.053005]
[1735327231198,0.0346,94470.0,94465.0,0.053004]
[1735327231598,0.12661698,94471.0,94469.0,0.053002]
[1735327231895,0.12597698,94471.0,94469.0,0.053002]
[1735327232091,0.12597698,94471.0,94464.0,0.3608]
[1735327232092,0.002,94476.0,94464.0,0.3608]
[1735327232493,0.007,94470.0,94464.0,0.3608]
[1735327233902,0.007,94470.0,94469.0,0.053002]
[1735327234195,0.009,94471.0,94470.0,0.053002]
[1735327235199,0.12597698,94481.0,94465.0,1.50092]
[1735327235391,0.12597698,94481.0,94469.0,0.053002]
[1735327235392,0.007,94470.0,94469.0,0.053002]
[1735327235796,0.12597698,94481.0,94469.0,0.353002]
[1735327235992,0.12597698,94481.0,94480.0,0.052996]
[1735327236187,0.12597698,94486.0,94485.0,0.052993]
[1735327237598,0.36144,94492.0,94491.0,0.05299]
[1735327237799,0.3608,94492.0,94491.0,0.05299]
[1735327239197,0.3698,94492.0,94491.0,0.05399]
[1735327242600,0.3698,94492.0,94491.0,0.001]
[1735327243406,0.10769915,94480.0,94466.0,0.053004]
[1735327243599,0.3608,94471.0,94466.0,0.053004]
[1735327243804,0.3608,94471.0,94463.0,0.25348855]
[1735327244009,0.0335,94470.0,94465.0,0.053004]
[1735327244197,0.3608,94479.0,94468.0,0.053003]
[1735327244392,0.3608,94479.0,94470.0,0.053001]
[1735327244596,0.3608,94479.0,94460.0,0.118423]
[1735327244597,0.3608,94479.0,94477.0,0.052998]
[1735327244801,0.0335,94491.0,94487.0,0.052992]
[1735327245002,0.0335,94491.0,94480.0,0.10769915]
[1735327245301,0.0335,94491.0,94488.0,0.052991]
[1735327245705,0.12597698,94490.0,94488.0,0.052991]
[1735327246305,0.0354,94489.0,94488.0,0.052991]
[1735327247802,0.22468121,94489.0,94488.0,0.052991]
[1735327248102,0.22468121,94489.0,94488.0,0.053991]
[1735327248606,0.22468121,94489.0,94488.0,0.052991]
[1735327248806,0.23368121,94489.0,94488.0,0.053991]
[1735327250308,0.0444,94489.0,94488.0,0.053991]
[1735327258320,0.0444,94489.0,94488.0,0.001]
[1735327258522,0.3444,94489.0,94474.0,0.25348855]
[1735327258821,0.053003,94467.0,94457.0,0.053009]
[1735327259029,0.413803,94467.0,94453.0,0.3608]
[1735327259327,0.413803,94467.0,94462.0,0.053006]
[1735327259520,0.0377,94466.0,94462.0,0.053006]
[1735327260218,0.053005,94464.0,94462.0,0.053006]
[1735327261634,0.060005,94464.0,94462.0,0.054006]
[1735327263327,0.12613684,94463.0,94462.0,0.001]
[1735327264238,0.12613684,94463.0,94462.0,0.0353]
[1735327264432,0.007,94463.0,94462.0,0.0353]
[1735327265436,0.17914184,94464.0,94462.0,0.0343]
[1735327265637,0.007,94463.0,94462.0,0.001]
[1735327267528,0.053005,94464.0,94453.0,0.3608]
[1735327267932,0.053005,94464.0,94456.0,0.053009]
[1735327268637,0.006,94463.0,94462.0,0.001]
[1735327269524,0.053007,94461.0,94428.0,0.053025]
[1735327269733,0.10769915,94440.0,94431.0,0.0369]
[1735327269938,0.413823,94433.0,94431.0,0.0369]
[1735327270337,0.053026,94427.0,94426.0,0.31686069]
[1735327271132,0.049026,94427.0,94426.0,0.31686069]
[1735327271535,0.049026,94427.0,94416.0,0.3608]
[1735327271733,0.3608,94424.0,94416.0,0.3608]
[1735327272727,0.3608,94424.0,94416.0,0.3618]
[1735327273333,0.45504018,94424.0,94416.0,0.3618]
[1735327273739,0.45504018,94424.0,94416.0,0.3638]
[1735327274834,0.3608,94424.0,94416.0,0.416832]
[1735327275743,0.3608,94424.0,94418.0,0.053031]
[1735327276936,0.3608,94424.0,94418.0,0.054031]
[1735327278033,0.3608,94424.0,94419.0,0.05303]
[1735327279157,0.053022,94435.0,94426.0,0.053026]
[1735327279332,0.053022,94435.0,94428.0,0.3608]
[1735327280444,0.056022,94435.0,94428.0,0.3608]
[1735327281157,0.003,94435.0,94428.0,0.3608]
[1735327281329,0.003,94435.0,94417.0,0.3608]
[1735327281330,0.053024,94431.0,94426.0,0.3608]
[1735327282935,0.056024,94431.0,94426.0,0.3608]
[1735327283846,0.053026,94428.0,94426.0,0.3608]
[1735327284545,0.053028,94423.0,94419.0,0.05303]
[1735327286341,0.3608,94426.0,94404.0,0.3608]
[1735327286536,0.053036,94410.0,94405.0,0.053038]
[1735327286738,0.10769915,94414.0,94404.0,0.3608]
[1735327286939,0.053038,94406.0,94404.0,0.3608]
[1735327287136,0.05304,94401.0,94400.0,0.09]
[1735327288142,0.05304,94401.0,94388.0,0.3608]
[1735327288143,0.01082033,94401.0,94388.0,0.3608]
[1735327288339,0.053047,94389.0,94388.0,0.3608]
[1735327288536,0.043047,94389.0,94388.0,0.3608]
[1735327289136,0.041047,94389.0,94388.0,0.3608]
[1735327289341,0.041047,94389.0,94388.0,0.3648]
[1735327289643,0.042047,94389.0,94388.0,0.3718]
[1735327292544,0.042047,94389.0,94388.0,0.424848]
[1735327292545,0.001,94389.0,94388.0,0.424848]
[1735327293549,0.001,94389.0,94388.0,1.924848]
[1735327293738,0.001,94389.0,94388.0,0.424848]
[1735327298851,0.001,94389.0,94388.0,0.38228275]
[1735327299953,0.09424018,94404.0,94388.0,0.38228275]
[1735327300160,0.17869158,94406.0,94400.0,0.3608]
[1735327300545,0.053039,94405.0,94400.0,0.3608]
[1735327301257,0.12565358,94406.0,94405.0,0.053038]
[1735327301648,0.09422414,94410.0,94405.0,0.053038]
[1735327301848,0.09422414,94410.0,94408.0,0.3608]
[1735327302953,0.14726014,94410.0,94408.0,0.3608]
[1735327303162,0.15026014,94410.0,94408.0,0.3608]
[1735327303455,0.056036,94410.0,94408.0,0.3608]
[1735327305357,0.056036,94410.0,94408.0,0.37128993]
[1735327307345,0.003,94410.0,94409.0,0.053036]
[1735327308356,0.003,94410.0,94408.0,0.37128993]
[1735327308560,0.10769915,94420.0,94395.0,0.2258748]
[1735327308561,0.053041,94401.0,94395.0,0.2258748]
[1735327308765,0.053043,94396.0,94395.0,0.1896748]
[1735327309262,0.053046,94392.0,94390.0,0.3608]
[1735327309656,0.050046,94392.0,94390.0,0.3608]
[1735327310661,0.053043,94398.0,94390.0,0.3608]
[1735327310863,0.053043,94397.0,94390.0,0.3608]
[1735327311066,0.20192329,94400.0,94390.0,0.3648]
[1735327311455,0.001,94392.0,94390.0,0.3658]
[1735327311862,0.10769915,94400.0,94390.0,0.3648]
[1735327312066,0.053045,94394.0,94390.0,0.3658]
[1735327312566,0.001,94392.0,94390.0,0.3618]
[1735327312754,0.001,94392.0,94390.0,0.3658]
[1735327313455,0.001,94392.0,94390.0,0.3648]
[1735327313656,0.054045,94394.0,94390.0,0.3648]
[1735327314957,0.001,94394.0,94390.0,0.3648]
[1735327315165,0.09422414,94396.0,94392.0,0.053045]
[1735327315854,0.001,94394.0,94392.0,0.053045]
[1735327316453,0.09422414,94396.0,94392.0,0.054045]
[1735327317158,0.053041,94400.0,94392.0,0.057045]
[1735327317159,0.09422414,94395.0,94392.0,0.057045]
[1735327317957,0.09422414,94395.0,94393.0,0.053045]
[1735327318463,0.12565358,94398.0,94393.0,0.053045]
[1735327319763,0.12565358,94397.0,94393.0,0.054045]
[1735327319964,0.12565358,94397.0,94394.0,0.053044]
[1735327320857,0.12565358,94397.0,94395.0,0.053044]
[1735327321461,0.1578235,94397.0,94396.0,0.053043]
[1735327321850,0.1588235,94397.0,94396.0,0.053043]
[1735327322764,0.001,94397.0,94396.0,0.053043]
[1735327322964,0.12605313,94401.0,94395.0,0.01152075]
[1735327323261,0.002,94397.0,94395.0,0.01060075]
[1735327323458,0.002,94397.0,94395.0,0.001]
[1735327324162,0.002,94397.0,94395.0,0.054044]
[1735327324562,0.001,94401.0,94395.0,0.054044]
[1735327324765,0.001,94401.0,94400.0,0.3608]
[1735327324964,0.1588235,94401.0,94400.0,0.3608]
[1735327325162,0.1578235,94401.0,94400.0,0.3608]
[1735327325964,0.1618235,94401.0,94400.0,0.3608]
[1735327326468,0.004,94401.0,94400.0,0.3608]
[1735327328559,0.004,94401.0,94390.0,0.3608]
[1735327328560,0.053046,94391.0,94390.0,0.3608]
[1735327328870,0.053046,94391.0,94390.0,0.61496614]
[1735327329758,0.053046,94391.0,94390.0,0.61696614]
[1735327329970,0.053046,94391.0,94390.0,0.3628]
[1735327330870,0.053046,94391.0,94390.0,0.3638]
[1735327333169,0.053046,94391.0,94390.0,0.003]
[1735327335469,0.29404083,94391.0,94390.0,0.003]
[1735327336073,0.24099483,94391.0,94390.0,0.003]
[1735327336275,0.24099483,94391.0,94390.0,0.416846]
[1735327336870,0.05160663,94391.0,94390.0,0.416846]
[1735327338176,0.15748525,94396.0,94395.0,0.053044]
[1735327338482,0.15748525,94396.0,94395.0,0.413844]
[1735327339376,0.15848525,94396.0,94395.0,0.413844]
[1735327339580,0.001,94396.0,94395.0,0.414844]
[1735327347768,0.053036,94409.0,94402.0,0.053039]
[1735327347978,0.053036,94409.0,94408.0,0.3608]
[1735327348781,0.15748525,94416.0,94408.0,0.3608]
[1735327349879,0.15948525,94416.0,94408.0,0.3608]
[1735327350282,0.15948525,94416.0,94408.0,0.413836]
[1735327350587,0.004,94409.0,94408.0,0.413836]
[1735327350981,0.006,94416.0,94415.0,0.053032]
[1735327351490,0.001,94416.0,94415.0,0.053032]
[1735327351676,0.008,94416.0,94415.0,0.053032]
[1735327352082,0.001,94416.0,94415.0,0.053032]
[1735327352288,0.009,94416.0,94415.0,0.053032]
[1735327352688,0.01,94416.0,94415.0,0.053032]
[1735327353679,0.002,94416.0,94415.0,0.053032]
[1735327353876,0.009,94416.0,94415.0,0.053032]
[1735327354777,0.002,94416.0,94415.0,0.053032]
[1735327354972,0.011,94416.0,94415.0,0.053032]
[1735327355378,0.15748525,94427.0,94415.0,0.413832]
[1735327355581,0.15748525,94427.0,94426.0,0.413826]
[1735327355788,0.15748525,94427.0,94426.0,1.913826]
[1735327355976,0.00158929,94429.0,94426.0,1.8608]
[1735327355977,0.15907454,94429.0,94426.0,1.8608]
[1735327356187,0.15907454,94429.0,94428.0,0.053025]
[1735327357186,0.16407454,94429.0,94428.0,0.053025]
[1735327357684,0.16407454,94429.0,94428.0,0.054025]
[1735327357685,0.01558929,94429.0,94428.0,0.054025]
[1735327359289,0.01558929,94429.0,94428.0,0.001]
[1735327360494,0.01558929,94429.0,94428.0,0.01133868]
[1735327367882,0.06861329,94429.0,94428.0,0.001]
[1735327368281,0.01558929,94429.0,94415.0,0.01045252]
[1735327368483,0.053031,94418.0,94409.0,0.24359922]
[1735327368690,0.088832,94417.0,94409.0,0.24359922]
[1735327368891,0.01558929,94429.0,94416.0,0.3608]
[1735327369090,0.1893882,94446.0,94428.0,0.3608]
[1735327369288,0.1893882,94446.0,94437.0,0.41382]
[1735327369883,0.15748525,94448.0,94437.0,0.3608]
[1735327370091,0.15748525,94448.0,94447.0,0.3608]
[1735327370982,0.072,94451.0,94447.0,0.3608]
[1735327371182,0.009,94448.0,94447.0,0.3618]
[1735327371987,0.013,94448.0,94447.0,0.3618]
[1735327372692,0.009,94448.0,94447.0,0.3618]
[1735327377893,0.053023,94433.0,94420.0,0.00092]
[1735327378095,0.0672,94432.0,94424.0,0.053027]
[1735327378591,0.0672,94432.0,94418.0,0.3608]
[1735327378592,0.053024,94430.0,94418.0,0.37134918]
[1735327378792,0.053025,94429.0,94420.0,0.10769915]
[1735327379490,0.0672,94432.0,94420.0,0.10769915]
[1735327379697,0.0672,94432.0,94418.0,0.3608]
[1735327379698,0.053027,94425.0,94418.0,0.3608]
[1735327380097,0.053027,94425.0,94424.0,0.001]
[1735327380700,0.05303,94420.0,94418.0,0.3608]
[1735327382292,0.05403,94420.0,94418.0,0.3608]
[1735327382892,0.06003,94420.0,94418.0,0.3618]
[1735327383396,0.05403,94420.0,94418.0,0.3608]
[1735327383599,0.06003,94420.0,94418.0,0.3618]
[1735327383992,0.05403,94420.0,94418.0,0.3608]
[1735327384193,0.06003,94420.0,94418.0,0.3618]
[1735327384593,0.05303,94420.0,94419.0,1.5]
[1735327384800,0.06003,94420.0,94419.0,1.5]
[1735327385299,0.06003,94420.0,94418.0,0.3618]
[1735327386804,0.06003,94420.0,94418.0,0.3608]
[1735327386996,0.06003,94420.0,94418.0,0.3618]
[1735327387198,0.05903,94420.0,94418.0,0.3618]
[1735327387397,0.05403,94420.0,94418.0,0.3608]
[1735327387596,0.06003,94420.0,94418.0,0.3618]
[1735327387903,0.007,94420.0,94418.0,0.41483]
[1735327388498,0.15727975,94419.0,94418.0,0.41483]
[1735327389099,0.15727975,94419.0,94418.0,0.3618]
[1735327389404,0.21730975,94420.0,94418.0,0.3618]
[1735327389703,0.21730975,94420.0,94400.0,0.05304]
[1735327389704,0.053037,94407.0,94400.0,0.05304]
[1735327390014,0.053037,94407.0,94398.0,0.3608]
[1735327390015,0.0354,94406.0,94398.0,0.3608]
[1735327390204,0.103,94406.0,94398.0,0.3608]
[1735327390601,0.053041,94400.0,94398.0,0.3608]
[1735327390797,0.103,94406.0,94400.0,0.002]
[1735327390798,0.19267975,94406.0,94400.0,0.002]
[1735327391005,0.19267975,94406.0,94404.0,0.053038]
[1735327392707,0.0354,94406.0,94404.0,0.053038]
[1735327392907,0.088438,94406.0,94404.0,0.053038]
[1735327393305,0.088438,94406.0,94404.0,0.054038]
[1735327394613,0.15727975,94411.0,94404.0,0.001]
[1735327394801,0.15727975,94411.0,94410.0,0.413835]
[1735327395711,0.0353,94425.0,94418.0,0.05303]
[1735327395712,0.088327,94425.0,94418.0,0.05303]
[1735327395904,0.088327,94425.0,94410.0,0.3608]
[1735327396100,0.088327,94425.0,94417.0,0.053031]
[1735327396302,0.0353,94425.0,94417.0,0.053031]
[1735327396502,0.053028,94424.0,94417.0,0.053031]
[1735327396811,0.053028,94424.0,94419.0,0.3608]
[1735327397008,0.053028,94423.0,94419.0,0.3608]
[1735327398009,0.053028,94422.0,94419.0,0.3608]
[1735327398209,0.053029,94421.0,94419.0,0.3608]
[1735327399204,0.053029,94421.0,94419.0,0.3618]
[1735327399707,0.060029,94421.0,94419.0,0.3618]
[1735327401502,0.061029,94421.0,94419.0,0.3618]
[1735327402907,0.008,94421.0,94419.0,0.414828]
[1735327404007,0.008,94421.0,94420.0,0.0664]
[1735327404608,0.008,94421.0,94419.0,0.3618]
[1735327404609,0.053028,94420.0,94419.0,0.3618]
[1735327404809,0.053036,94406.0,94405.0,0.19056422]
[1735327406311,0.053037,94405.0,94401.0,0.3608]
[1735327407304,0.12582427,94403.0,94401.0,0.3608]
[1735327407505,0.12482427,94403.0,94401.0,0.3608]
[1735327408313,0.12482427,94403.0,94401.0,0.3628]
[1735327408908,0.053037,94405.0,94401.0,0.3628]
[1735327409107,0.053037,94405.0,94401.0,0.3638]
[1735327410215,0.053039,94402.0,94401.0,0.3638]
[1735327412212,0.053039,94402.0,94401.0,0.3628]
[1735327412420,0.053039,94402.0,94401.0,0.3638]
[1735327412917,0.053039,94402.0,94401.0,0.003]
[1735327413106,0.053039,94402.0,94377.0,0.053052]
[1735327413107,0.053053,94376.0,94375.0,0.3608]
[1735327413310,0.05305,94383.0,94375.0,0.3608]
[1735327413519,0.10769915,94385.0,94376.0,0.053053]
[1735327413721,0.053051,94381.0,94375.0,0.3608]
[1735327414211,0.10769915,94385.0,94375.0,0.3668]
[1735327414407,0.053053,94377.0,94375.0,0.3668]
[1735327414813,0.15724089,94376.0,94375.0,0.3608]
[1735327415005,0.15724089,94376.0,94375.0,0.3668]
[1735327415514,0.15824089,94376.0,94375.0,0.3758]
[1735327415714,0.15824089,94376.0,94375.0,0.428854]
[1735327415917,0.15724089,94376.0,94375.0,0.419854]
[1735327416115,0.15724089,94377.0,94375.0,0.420854]
[1735327416318,0.15724089,94377.0,94376.0,0.0706]
[1735327416512,0.15724089,94377.0,94376.0,0.1065]
[1735327417118,0.15724089,94386.0,94378.0,0.053053]
[1735327417323,0.15724089,94386.0,94385.0,0.3608]
[1735327417621,0.15724089,94386.0,94385.0,1.8608]
[1735327418011,0.10769915,94400.0,94385.0,0.3608]
[1735327418318,0.053048,94389.0,94385.0,0.3608]
[1735327418916,0.003,94386.0,94385.0,0.3608]
[1735327420107,0.053048,94387.0,94385.0,0.3608]
[1735327421320,0.05305,94385.0,94377.0,0.053054]
[1735327423024,0.05305,94385.0,94377.0,0.054054]
[1735327427119,0.053053,94379.0,94377.0,0.001]
[1735327427327,0.0346,94378.0,94371.0,0.3608]
[1735327427629,0.053057,94372.0,94371.0,0.3608]
[1735327428712,0.0704,94378.0,94363.0,0.3608]
[1735327428913,0.052064,94359.0,94358.0,0.3608]
[1735327429429,0.049064,94359.0,94358.0,0.3608]
[1735327429822,0.053068,94352.0,94350.0,0.00158975]
[1735327430129,0.047068,94352.0,94350.0,0.00158975]
[1735327430531,0.042068,94352.0,94350.0,0.00158975]
[1735327431233,0.053064,94360.0,94350.0,0.00158975]
[1735327431428,0.053064,94360.0,94357.0,0.3608]
[1735327431633,0.001,94359.0,94358.0,0.006]
[1735327432020,0.053064,94360.0,94357.0,0.3608]
[1735327432221,0.053065,94358.0,94357.0,0.3608]
[1735327432827,0.046065,94358.0,94357.0,0.3608]
[1735327433221,0.081465,94358.0,94357.0,0.3608]
[1735327433525,0.082465,94358.0,94357.0,0.3638]
[1735327433731,0.082465,94358.0,94357.0,0.3678]
[1735327436326,0.082465,94358.0,94357.0,0.007]
[1735327437035,0.115465,94358.0,94357.0,0.007]
[1735327438135,0.114465,94358.0,94357.0,0.007]
[1735327438629,0.114465,94358.0,94357.0,0.003]
[1735327438835,0.114465,94358.0,94357.0,0.005]
[1735327439435,0.053074,94341.0,94339.0,0.3608]
[1735327439834,0.0343,94340.0,94339.0,0.3608]
[1735327442025,0.0413,94340.0,94339.0,0.3608]
[1735327442431,0.0343,94340.0,94339.0,0.3608]
[1735327442734,0.0423,94340.0,94339.0,0.3608]
[1735327442933,0.008,94340.0,94339.0,0.3608]